bitfinex-derivatives/quotes_ETHF0:USTF0_20260117
["timestamp","ask_amount","ask_price","bid_price","bid_amount"]
[1768634550750,0.14170334,3293.0,3291.3,0.14160954]
[1768634550948,0.93303785,3292.9,3291.3,0.14160954]
[1768634551152,0.14170334,3293.0,3291.3,0.14160954]
[1768634551352,0.93285453,3292.9,3291.3,0.14160954]
[1768634551555,0.14170334,3293.0,3291.3,0.14160954]
[1768634551756,0.93284007,3292.9,3291.3,0.14160954]
[1768634551957,0.14170334,3293.0,3291.3,0.14160954]
[1768634556866,0.00231984,3293.1,3291.3,0.14160954]
[1768634557071,0.00231984,3293.1,3291.7,0.13640201]
[1768634585695,0.13929856,3292.9,3291.3,0.28278153]
[1768634585896,0.93327975,3292.8,3291.3,0.28278153]
[1768634586096,0.13929856,3292.9,3291.3,0.28278153]
[1768634586295,1.07246042,3292.8,3291.3,0.13080153]
[1768634586495,0.93311599,3292.7,3291.3,0.13080153]
[1768634586696,0.13929856,3292.8,3291.3,0.13080153]
[1768634586894,0.93311597,3292.7,3291.3,0.13080153]
[1768634587096,0.13929856,3292.8,3291.3,0.13080153]
[1768634587294,0.93287164,3292.7,3291.3,0.13080153]
[1768634587494,0.13929856,3292.8,3291.3,0.13080153]
[1768634587702,0.93287159,3292.7,3291.3,0.13080153]
[1768634587901,0.13929856,3292.8,3291.3,0.13080153]
[1768634588103,0.93287145,3292.7,3291.3,0.13080153]
[1768634588295,0.13929856,3292.8,3291.3,0.13080153]
[1768634607332,0.98518499,3292.7,3291.3,1.11598652]
[1768634628750,0.13929856,3292.8,3291.3,1.11598652]
[1768634628948,0.98518499,3292.6,3291.3,1.11598652]
[1768634632154,0.98518499,3292.6,3291.3,0.13080153]
[1768634645077,0.13929856,3292.8,3291.3,0.13080153]
[1768634645370,0.98518499,3292.5,3291.3,0.13080153]
[1768634646475,0.13929856,3292.8,3291.3,0.13080153]
[1768634646679,0.98518499,3292.6,3291.3,0.13080153]
[1768634649483,0.98518499,3292.2,3290.9,0.152]
[1768634651079,0.98518499,3292.2,3291.0,0.98518499]
[1768634651383,0.00231984,3293.1,3291.4,1.12916008]
[1768634651568,0.93440692,3293.0,3291.9,0.98518499]
[1768634651769,0.00231984,3293.1,3291.9,0.98518499]
[1768634651977,0.00231984,3293.1,3291.7,0.98518499]
[1768634652179,0.00231984,3293.1,3291.7,1.12916008]
[1768634653576,0.00231984,3293.1,3292.0,0.98518499]
[1768634667288,0.00231984,3293.1,3291.8,0.14397509]
[1768634678699,0.00231984,3293.1,3292.0,0.1410952]
[1768634689702,0.006073,3293.4,3292.0,0.2930252]
[1768634689903,0.006073,3293.4,3292.4,0.1410952]
[1768634690706,0.00976317,3293.4,3292.4,0.14374436]
[1768634700812,0.00976317,3293.4,3292.4,0.00264916]
[1768634701818,0.00976317,3293.4,3292.4,0.14435669]
[1768634702119,5.25576718,3294.5,3292.4,0.14435669]
[1768634702120,0.13749506,3294.6,3292.9,0.14170753]
[1768634702419,0.13749506,3295.0,3292.9,0.14170753]
[1768634702617,0.92708244,3294.9,3292.9,0.14170753]
[1768634702819,0.92708244,3294.8,3292.9,0.14170753]
[1768634703118,0.92708244,3294.7,3292.9,0.14170753]
[1768634703318,0.0024531,3294.8,3292.9,0.14170753]
[1768634703521,0.92666622,3294.7,3292.9,0.14170753]
[1768634703707,0.0024531,3294.8,3292.9,0.14170753]
[1768634703912,0.92666605,3294.7,3292.9,0.14170753]
[1768634704210,0.0024531,3294.8,3292.9,0.14170753]
[1768634706017,0.13749506,3294.4,3292.5,0.15191]
[1768634706225,0.13749506,3294.4,3292.5,0.29361753]
[1768634706516,0.13749506,3294.4,3292.6,0.14170753]
[1768634712926,0.13749506,3294.4,3292.7,0.14170753]
[1768634715232,0.0024531,3294.8,3292.7,0.14170753]
[1768634715426,0.92649421,3294.7,3292.7,0.14170753]
[1768634715617,0.92649421,3294.6,3292.7,0.14170753]
[1768634715924,0.92649421,3294.5,3292.7,0.14170753]
[1768634716127,0.13994816,3294.8,3292.7,0.14170753]
[1768634716313,0.92651298,3294.7,3292.7,0.14170753]
[1768634716517,0.92651298,3294.6,3292.7,0.14170753]
[1768634716719,0.92651298,3294.5,3292.7,0.14170753]
[1768634716920,0.13994816,3294.8,3292.7,0.14170753]
[1768634717128,0.92661737,3294.7,3292.7,0.14170753]
[1768634717329,0.92661737,3294.6,3292.7,0.14170753]
[1768634717533,0.92661737,3294.5,3292.7,0.14170753]
[1768634717737,0.13994816,3294.8,3292.9,0.14170753]
[1768634718028,0.92674933,3294.7,3292.9,0.14170753]
[1768634718222,0.92674933,3294.6,3292.9,0.14170753]
[1768634718529,0.13994816,3294.8,3292.9,0.14170753]
[1768634718733,0.92690352,3294.7,3292.9,0.14170753]
[1768634719032,0.92690352,3294.6,3292.9,0.14170753]
[1768634719228,0.13994816,3294.8,3292.9,0.14170753]
[1768634719423,0.92690852,3294.7,3292.9,0.14170753]
[1768634719620,0.92690852,3294.6,3292.9,0.14170753]
[1768634719820,0.13994816,3294.8,3292.9,0.14170753]
[1768634720120,0.9270625,3294.7,3292.9,0.14170753]
[1768634720316,0.9270625,3294.6,3292.9,0.14170753]
[1768634720520,0.13994816,3294.8,3292.9,0.14170753]
[1768634720829,0.92453813,3294.7,3292.9,0.14170753]
[1768634721030,0.13994816,3294.8,3292.9,0.14170753]
[1768634721332,0.92453026,3294.7,3292.9,0.14170753]
[1768634721533,0.13994816,3294.8,3292.9,0.14170753]
[1768634721832,0.92459113,3294.7,3292.9,0.14170753]
[1768634722033,0.13994816,3294.8,3292.9,0.14170753]
[1768634722237,0.92459095,3294.7,3292.9,0.14170753]
[1768634722445,0.13994816,3294.8,3292.9,0.14170753]
[1768634722625,0.92462804,3294.7,3292.9,0.14170753]
[1768634722827,0.13994816,3294.8,3292.9,0.14170753]
[1768634723026,0.92462804,3294.7,3292.9,0.14170753]
[1768634723336,0.13994816,3294.8,3292.9,0.14170753]
[1768634723538,0.92468406,3294.7,3292.9,0.14170753]
[1768634723835,0.13994816,3294.8,3292.9,0.14170753]
[1768634724137,0.92468408,3294.7,3292.9,0.14170753]
[1768634724430,0.92476175,3294.6,3292.9,0.14170753]
[1768634724632,0.13994816,3294.8,3292.9,0.14170753]
[1768634724834,0.92476175,3294.7,3292.9,0.14170753]
[1768634725032,0.92476175,3294.6,3292.9,0.14170753]
[1768634725235,0.13994816,3294.8,3292.9,0.14170753]
[1768634725546,0.92476373,3294.7,3292.9,0.14170753]
[1768634725728,0.92476373,3294.6,3292.9,0.14170753]
[1768634725929,0.13994816,3294.8,3292.9,0.14170753]
[1768634726129,0.92486385,3294.7,3292.9,0.14170753]
[1768634726435,0.92486385,3294.6,3292.9,0.14170753]
[1768634726628,0.13994816,3294.8,3292.9,0.14170753]
[1768634726827,0.92498457,3294.7,3292.9,0.14170753]
[1768634727023,0.92498457,3294.6,3292.9,0.14170753]
[1768634727224,0.13994816,3294.8,3292.9,0.14170753]
[1768634727425,0.92499055,3294.7,3292.9,0.14170753]
[1768634727622,0.92499055,3294.6,3292.9,0.14170753]
[1768634727825,0.13476976,3294.6,3292.9,0.14170753]
[1768634729338,1.11873792,3294.6,3293.3,0.98396816]
[1768634729535,0.0024531,3294.8,3293.7,0.98396816]
[1768634729838,0.92549057,3294.7,3293.7,0.98396816]
[1768634730134,0.0024531,3294.8,3293.7,0.98396816]
[1768634730436,0.92546654,3294.7,3293.7,0.98396816]
[1768634730634,0.0024531,3294.8,3293.7,0.98396816]
[1768634730938,0.92546642,3294.7,3293.7,0.98396816]
[1768634731127,0.0024531,3294.8,3293.7,0.98396816]
[1768634731326,0.92569886,3294.7,3293.7,0.98396816]
[1768634731526,0.92569886,3294.6,3293.7,0.98396816]
[1768634731726,0.0024531,3294.8,3293.7,0.98396816]
[1768634731927,0.92569886,3294.7,3293.7,0.98396816]
[1768634732135,0.92569886,3294.6,3293.7,0.98396816]
[1768634732334,0.0024531,3294.8,3293.7,0.98396816]
[1768634732534,0.92573148,3294.7,3293.7,0.98396816]
[1768634732728,0.92573148,3294.6,3293.7,0.98396816]
[1768634732931,0.0024531,3294.8,3293.7,0.98396816]
[1768634733234,0.92573146,3294.7,3293.7,0.98396816]
[1768634733440,0.92573146,3294.6,3293.7,0.98396816]
[1768634733640,0.0024531,3294.8,3293.7,0.98396816]
[1768634733833,0.92570435,3294.7,3293.7,0.98396816]
[1768634734035,0.0024531,3294.8,3293.7,0.98396816]
[1768634734235,0.92569613,3294.7,3293.7,0.98396816]
[1768634734436,0.0024531,3294.8,3293.7,0.98396816]
[1768634734740,0.92566746,3294.7,3293.7,0.98396816]
[1768634734938,0.0024531,3294.8,3293.7,0.98396816]
[1768634735136,0.92566604,3294.7,3293.7,0.98396816]
[1768634735341,0.0024531,3294.8,3293.7,0.98396816]
[1768634735545,0.92563762,3294.7,3293.7,0.98396816]
[1768634735735,0.0024531,3294.8,3293.7,0.98396816]
[1768634735936,0.92562626,3294.7,3293.7,0.98396816]
[1768634736233,0.0024531,3294.8,3293.7,0.98396816]
[1768634736425,0.92558245,3294.7,3293.7,0.98396816]
[1768634736630,0.0024531,3294.8,3293.7,0.98396816]
[1768634736838,0.92558246,3294.7,3293.7,0.98396816]
[1768634737042,0.0024531,3294.8,3293.7,0.98396816]
[1768634737242,0.9255826,3294.7,3293.6,0.98396816]
[1768634737443,0.0024531,3294.8,3293.6,0.98396816]
[1768634737740,0.92554733,3294.7,3293.6,0.98396816]
[1768634737944,0.0024531,3294.8,3293.6,0.98396816]
[1768634738133,0.92554747,3294.7,3293.6,0.98396816]
[1768634738334,0.0024531,3294.8,3293.6,0.98396816]
[1768634738643,0.92554504,3294.7,3293.6,0.98396816]
[1768634738833,0.0024531,3294.8,3293.6,0.98396816]
[1768634739030,0.92554504,3294.7,3293.6,0.98396816]
[1768634739245,0.0024531,3294.8,3293.6,0.98396816]
[1768634739437,0.92555206,3294.7,3293.6,0.98396816]
[1768634739642,0.0024531,3294.8,3293.6,0.98396816]
[1768634739843,0.92555206,3294.7,3293.6,0.98396816]
[1768634740039,0.0024531,3294.8,3293.6,0.98396816]
[1768634740241,0.92555206,3294.7,3293.6,0.98396816]
[1768634740550,0.0024531,3294.8,3293.4,0.98396816]
[1768634740744,0.92556454,3294.7,3293.4,0.98396816]
[1768634740933,0.0024531,3294.8,3293.4,0.98396816]
[1768634741133,0.92556454,3294.7,3293.4,0.98396816]
[1768634741335,0.0024531,3294.8,3293.4,0.98396816]
[1768634741632,0.92558583,3294.7,3293.4,0.98396816]
[1768634741830,0.0024531,3294.8,3293.4,0.98396816]
[1768634742041,0.92558583,3294.7,3293.4,0.98396816]
[1768634742240,0.0024531,3294.8,3293.4,0.98396816]
[1768634742446,0.9256146,3294.7,3293.4,0.98396816]
[1768634742630,0.0024531,3294.8,3293.4,0.98396816]
[1768634742929,0.9256146,3294.7,3293.4,0.98396816]
[1768634743233,0.0024531,3294.8,3293.4,0.98396816]
[1768634743447,0.92565146,3294.7,3293.4,0.98396816]
[1768634743641,0.0024531,3294.8,3293.4,0.98396816]
[1768634743843,0.92565146,3294.7,3293.4,0.98396816]
[1768634744036,0.0024531,3294.8,3293.4,0.98396816]
[1768634744329,0.92565146,3294.7,3293.4,0.98396816]
[1768634744534,0.0024531,3294.8,3293.2,0.1399856]
[1768634744734,0.925699,3294.7,3293.5,0.98396816]
[1768634744931,0.0024531,3294.8,3293.5,0.98396816]
[1768634745145,0.9256993,3294.7,3293.5,0.98396816]
[1768634745446,0.0024531,3294.8,3293.5,0.98396816]
[1768634745645,0.92575889,3294.7,3293.5,0.98396816]
[1768634745946,0.0024531,3294.8,3293.5,0.98396816]
[1768634746250,0.92575889,3294.7,3293.5,0.98396816]
[1768634746547,0.0024531,3294.8,3293.5,0.98396816]
[1768634746747,0.92583228,3294.7,3293.5,0.98396816]
[1768634746945,0.0024531,3294.8,3293.5,0.98396816]
[1768634747155,0.92583195,3294.7,3293.5,0.98396816]
[1768634747338,0.92583195,3294.6,3293.5,0.98396816]
[1768634747537,0.0024531,3294.8,3293.5,0.98396816]
[1768634747748,0.92592473,3294.7,3293.5,0.98396816]
[1768634747949,0.92592473,3294.6,3293.5,0.98396816]
[1768634748149,0.0024531,3294.8,3293.5,0.98396816]
[1768634748353,0.9259848,3294.7,3293.5,0.98396816]
[1768634748542,0.9259848,3294.6,3293.5,0.98396816]
[1768634748744,0.0024531,3294.8,3293.5,0.98396816]
[1768634748945,0.92598494,3294.7,3293.5,0.98396816]
[1768634749244,0.92598494,3294.6,3293.5,0.98396816]
[1768634749548,0.0024531,3294.8,3293.5,0.98396816]
[1768634749750,0.92603982,3294.7,3293.5,0.98396816]
[1768634750050,0.92603982,3294.6,3293.5,0.98396816]
[1768634750250,0.0024531,3294.8,3293.5,0.98396816]
[1768634750551,0.92614069,3294.7,3293.5,0.98396816]
[1768634750745,0.92614069,3294.6,3293.5,0.98396816]
[1768634750945,0.0024531,3294.8,3293.5,0.98396816]
[1768634751245,0.92614069,3294.7,3293.5,0.98396816]
[1768634751443,0.92614069,3294.6,3293.5,0.98396816]
[1768634751644,0.0024531,3294.8,3293.5,0.98396816]
[1768634751837,0.92615575,3294.7,3293.5,0.98396816]
[1768634752040,0.92615575,3294.6,3293.2,0.1399856]
[1768634752353,0.14318079,3294.8,3293.4,0.98396816]
[1768634752544,0.92617463,3294.7,3293.4,0.98396816]
[1768634752742,0.92617463,3294.6,3293.4,0.98396816]
[1768634752944,0.14318079,3294.8,3293.4,0.98396816]
[1768634753241,0.92617463,3294.7,3293.4,0.98396816]
[1768634753442,0.92617463,3294.6,3293.4,0.98396816]
[1768634753643,0.14318079,3294.8,3293.4,0.98396816]
[1768634753943,0.9261966,3294.7,3293.4,0.98396816]
[1768634754140,0.9261966,3294.6,3293.4,0.98396816]
[1768634754454,1.12469585,3294.7,3293.3,0.98396816]
[1768634754638,0.92622339,3294.6,3293.3,0.98396816]
[1768634754845,1.12469585,3294.7,3293.3,0.98396816]
[1768634755046,0.92622326,3294.6,3293.0,0.29142156]
[1768634755346,1.12469585,3294.7,3293.3,0.98396816]
[1768634755555,0.92625482,3294.6,3293.3,0.98396816]
[1768634755746,1.12469585,3294.7,3293.3,0.98396816]
[1768634755947,0.92625482,3294.6,3293.3,0.98396816]
[1768634756248,1.12469585,3294.7,3293.3,0.98396816]
[1768634756445,0.92629151,3294.6,3293.3,0.98396816]
[1768634756646,1.12469585,3294.7,3293.3,0.98396816]
[1768634756856,0.92629151,3294.6,3293.3,0.98396816]
[1768634757058,1.12469585,3294.7,3293.3,0.98396816]
[1768634757355,0.92626172,3294.6,3293.3,0.98396816]
[1768634757540,1.12469585,3294.7,3293.3,0.98396816]
[1768634757746,0.92625919,3294.6,3293.3,0.98396816]
[1768634757945,1.12469585,3294.7,3293.3,0.98396816]
[1768634758156,0.92625731,3294.6,3293.3,0.98396816]
[1768634758350,1.12469585,3294.7,3293.3,0.98396816]
[1768634758544,0.92632077,3294.6,3293.3,0.98396816]
[1768634758750,1.12469585,3294.7,3293.3,0.98396816]
[1768634758950,0.92632077,3294.6,3293.3,0.98396816]
[1768634759152,1.12469585,3294.7,3293.3,0.98396816]
[1768634759346,0.92643938,3294.6,3293.3,0.98396816]
[1768634759547,1.12469585,3294.7,3293.3,0.98396816]
[1768634759747,0.92644981,3294.6,3293.3,0.98396816]
[1768634760043,1.12469585,3294.7,3293.3,0.98396816]
[1768634760247,0.92610208,3294.6,3293.3,0.98396816]
[1768634760449,1.12469585,3294.7,3293.3,0.98396816]
[1768634760747,0.92610977,3294.6,3293.3,0.98396816]
[1768634760954,1.12469585,3294.7,3293.3,0.98396816]
[1768634761155,0.92606018,3294.6,3293.3,0.98396816]
[1768634761359,0.14072769,3294.7,3293.3,1.12350972]
[1768634761563,0.0024531,3294.8,3293.3,1.12350972]
[1768634761564,0.92607067,3294.6,3293.3,1.12350972]
[1768634761750,0.98642126,3294.8,3293.3,1.12350972]
[1768634762050,0.92608172,3294.7,3293.3,1.12350972]
[1768634762250,0.92608172,3294.6,3293.3,1.12350972]
[1768634762450,0.98642126,3294.8,3293.3,1.12350972]
[1768634762749,0.92609629,3294.7,3293.3,1.12350972]
[1768634762952,0.92609629,3294.6,3293.3,1.12350972]
[1768634763147,0.98642126,3294.8,3293.3,1.12350972]
[1768634763352,0.92610676,3294.7,3293.3,1.12350972]
[1768634763552,0.98642126,3294.8,3293.3,1.12350972]
[1768634763553,0.92610676,3294.6,3293.3,1.12350972]
[1768634763753,0.98642126,3294.8,3293.3,1.12350972]
[1768634763961,0.92613156,3294.7,3293.3,1.12350972]
[1768634764161,0.92613156,3294.6,3293.3,1.12350972]
[1768634764362,0.98642126,3294.8,3293.3,1.12350972]
[1768634764563,0.92613747,3294.7,3293.3,1.12350972]
[1768634764761,0.92613747,3294.6,3293.3,1.12350972]
[1768634764962,0.98642126,3294.8,3293.3,1.12350972]
[1768634765164,0.92614171,3294.7,3293.3,1.12350972]
[1768634765362,0.92614171,3294.6,3293.3,1.12350972]
[1768634765557,0.98642126,3294.8,3293.3,1.12350972]
[1768634765758,0.9261474,3294.7,3293.3,1.12350972]
[1768634766057,0.9261474,3294.6,3293.3,1.12350972]
[1768634766257,0.98642126,3294.8,3293.3,1.12350972]
[1768634766459,0.92615042,3294.7,3293.3,1.12350972]
[1768634766756,0.92615042,3294.6,3293.3,1.12350972]
[1768634766957,0.98642126,3294.8,3293.3,1.12350972]
[1768634767158,0.92615023,3294.7,3293.3,1.12350972]
[1768634767366,0.92615023,3294.6,3293.3,1.12350972]
[1768634767565,0.98642126,3294.8,3293.3,1.12350972]
[1768634767765,0.92614926,3294.7,3293.3,1.12350972]
[1768634767966,0.92614926,3294.6,3293.3,1.12350972]
[1768634768166,0.98642126,3294.8,3293.3,1.12350972]
[1768634768366,0.9261489,3294.7,3293.3,1.12350972]
[1768634768568,0.9261489,3294.6,3293.3,1.12350972]
[1768634768765,0.98642126,3294.8,3293.3,1.12350972]
[1768634768957,0.92614964,3294.7,3293.3,1.12350972]
[1768634769159,0.92614964,3294.6,3293.3,1.12350972]
[1768634769361,0.98642126,3294.8,3293.3,1.12350972]
[1768634769564,0.9261492,3294.7,3293.3,1.12350972]
[1768634769765,0.9261492,3294.6,3293.3,1.12350972]
[1768634769970,0.98642126,3294.8,3293.3,1.12350972]
[1768634770171,0.9261492,3294.7,3293.3,1.12350972]
[1768634770371,0.9261492,3294.6,3293.3,0.13954156]
[1768634770579,0.98642126,3294.8,3293.3,0.13954156]
[1768634770782,0.92615072,3294.7,3293.3,0.13954156]
[1768634770970,0.92615072,3294.6,3293.3,0.13954156]
[1768634771271,0.98642126,3294.8,3293.3,0.13954156]
[1768634771471,0.92623976,3294.7,3293.3,0.13954156]
[1768634771672,0.92623976,3294.6,3293.3,0.13954156]
[1768634771870,1.12714895,3294.8,3293.3,0.13954156]
[1768634772072,0.92623794,3294.7,3293.3,0.13954156]
[1768634772279,0.92623794,3294.6,3293.3,0.13954156]
[1768634772581,1.12714895,3294.8,3293.3,0.13954156]
[1768634772782,0.92625477,3294.7,3293.3,0.13954156]
[1768634772983,0.92625477,3294.6,3293.3,0.13954156]
[1768634773182,1.12714895,3294.8,3293.3,0.13954156]
[1768634773385,0.92625526,3294.7,3293.3,0.13954156]
[1768634773684,0.92625526,3294.6,3293.3,0.13954156]
[1768634773885,1.12714895,3294.8,3293.3,0.13954156]
[1768634774185,0.92625526,3294.7,3293.3,0.13954156]
[1768634774386,1.12714895,3294.8,3293.3,0.13954156]
[1768634774387,0.92625526,3294.6,3293.3,0.13954156]
[1768634774581,1.12714895,3294.8,3293.3,0.13954156]
[1768634774784,0.92629489,3294.7,3293.3,0.13954156]
[1768634774984,0.92629489,3294.6,3293.3,0.13954156]
[1768634775182,1.12714895,3294.8,3293.3,0.13954156]
[1768634775383,0.92629473,3294.7,3293.3,0.13954156]
[1768634775580,0.92629473,3294.6,3293.3,0.13954156]
[1768634775780,1.12714895,3294.8,3293.3,0.13954156]
[1768634775981,0.92629558,3294.7,3293.3,0.13954156]
[1768634776186,0.92629558,3294.6,3293.3,0.13954156]
[1768634776387,1.12714895,3294.8,3293.3,0.13954156]
[1768634776593,0.9262963,3294.7,3293.3,0.13954156]
[1768634776781,0.9262963,3294.6,3293.3,0.13954156]
[1768634777077,1.12714895,3294.8,3293.3,0.13954156]
[1768634777277,0.92629862,3294.7,3293.3,0.13954156]
[1768634777578,0.92629862,3294.6,3293.3,0.13954156]
[1768634777778,1.12714895,3294.8,3293.3,0.13954156]
[1768634777976,0.92629809,3294.7,3293.3,0.13954156]
[1768634778176,0.92629809,3294.6,3293.3,0.13954156]
[1768634778372,0.14318079,3294.8,3293.3,0.13954156]
[1768634778582,0.92629998,3294.7,3293.3,0.13954156]
[1768634778882,0.92629998,3294.6,3293.3,0.13954156]
[1768634779084,1.12714895,3294.8,3293.3,0.13954156]
[1768634779293,0.92630299,3294.7,3293.3,0.13954156]
[1768634779478,0.92630299,3294.6,3293.3,0.13954156]
[1768634779674,1.12714895,3294.8,3293.3,0.13954156]
[1768634779874,0.92630329,3294.7,3293.3,0.13954156]
[1768634780082,0.92630329,3294.6,3293.3,0.13954156]
[1768634780281,1.12714895,3294.8,3293.3,0.13954156]
[1768634780483,0.92547492,3294.7,3293.3,0.13954156]
[1768634780687,0.92547492,3294.6,3293.3,0.13954156]
[1768634780889,1.12714895,3294.8,3293.3,0.13954156]
[1768634781086,0.92547492,3294.7,3293.3,0.13954156]
[1768634781385,0.92547492,3294.6,3293.3,0.13954156]
[1768634781587,1.12714895,3294.8,3293.3,0.13954156]
[1768634781786,0.92547886,3294.7,3293.3,0.13954156]
[1768634782087,0.92547886,3294.6,3293.3,1.12350972]
[1768634782388,1.12714895,3294.8,3293.3,1.12350972]
[1768634782580,0.92566358,3294.7,3293.3,1.12350972]
[1768634782781,0.92566358,3294.6,3293.3,1.12350972]
[1768634783079,1.12714895,3294.8,3293.3,1.12350972]
[1768634783279,0.92566367,3294.7,3293.3,1.12350972]
[1768634783482,0.92566367,3294.6,3293.3,1.12350972]
[1768634783684,1.12714895,3294.8,3293.3,1.12350972]
[1768634783885,0.92567716,3294.7,3293.3,1.12350972]
[1768634784189,0.92567716,3294.6,3293.3,1.12350972]
[1768634784390,1.12714895,3294.8,3293.3,1.12350972]
[1768634784591,0.92570101,3294.7,3293.3,1.12350972]
[1768634784792,0.92570101,3294.6,3293.3,1.12350972]
[1768634785091,1.12714895,3294.8,3293.3,1.12350972]
[1768634785291,0.92570118,3294.7,3293.3,1.12350972]
[1768634785491,0.92570118,3294.6,3293.3,1.12350972]
[1768634785687,1.12714895,3294.8,3293.3,1.12350972]
[1768634785986,0.92569926,3294.7,3293.3,1.12350972]
[1768634786190,0.92569926,3294.6,3293.3,1.12350972]
[1768634786379,1.12714895,3294.8,3293.3,1.12350972]
[1768634786584,0.92576669,3294.7,3293.3,1.12350972]
[1768634786789,0.92576669,3294.6,3293.3,1.12350972]
[1768634786985,1.12714895,3294.8,3293.3,1.12350972]
[1768634787179,0.92576669,3294.7,3293.3,1.12350972]
[1768634787380,0.92576669,3294.6,3293.3,1.12350972]
[1768634787594,1.12714895,3294.8,3293.3,1.12350972]
[1768634787796,0.92576721,3294.7,3293.3,1.12350972]
[1768634787990,0.92576721,3294.6,3293.3,1.12350972]
[1768634788191,1.12714895,3294.8,3293.3,1.12350972]
[1768634788391,0.92576789,3294.7,3293.3,1.12350972]
[1768634788592,0.92576789,3294.6,3293.3,1.12350972]
[1768634788792,1.12714895,3294.8,3293.3,1.12350972]
[1768634788993,0.92576789,3294.7,3293.3,1.12350972]
[1768634789292,0.92576789,3294.6,3293.3,1.12350972]
[1768634789492,1.12714895,3294.8,3293.3,1.12350972]
[1768634789795,0.92576881,3294.7,3293.3,1.12350972]
[1768634789996,0.92576881,3294.6,3293.3,1.12350972]
[1768634790184,0.92576881,3294.5,3293.3,1.12350972]
[1768634790388,1.12714895,3294.8,3293.3,1.12350972]
[1768634790589,0.92575,3294.7,3293.3,1.12350972]
[1768634790789,0.92575,3294.6,3293.3,1.12350972]
[1768634790997,0.92575,3294.5,3293.3,1.12350972]
[1768634791190,1.12714895,3294.8,3293.3,1.12350972]
[1768634791394,0.92573055,3294.7,3293.3,0.13954156]
[1768634791591,0.92573055,3294.6,3293.3,0.13954156]
[1768634791797,0.92573055,3294.5,3293.3,0.13954156]
[1768634792092,0.14318079,3294.8,3293.3,0.13954156]
[1768634792292,0.92573057,3294.7,3293.3,0.13954156]
[1768634792492,0.14318079,3294.8,3293.3,0.13954156]
[1768634792493,0.92573057,3294.6,3293.3,0.13954156]
[1768634792790,0.92573057,3294.5,3293.3,0.13954156]
[1768634792988,0.14318079,3294.8,3293.3,0.13954156]
[1768634793199,0.92571646,3294.7,3293.3,0.13954156]
[1768634793398,0.92571646,3294.6,3293.3,0.13954156]
[1768634793599,0.92571646,3294.5,3293.3,0.13954156]
[1768634793799,0.14318079,3294.8,3293.3,0.13954156]
[1768634794097,0.92570544,3294.7,3293.3,0.13954156]
[1768634794300,0.92570544,3294.6,3293.3,0.13954156]
[1768634794493,0.92570544,3294.5,3293.3,0.13954156]
[1768634794693,0.14318079,3294.8,3293.3,0.13954156]
[1768634794997,0.92569654,3294.7,3293.3,0.13954156]
[1768634795295,0.92569654,3294.6,3293.3,0.13954156]
[1768634795492,0.92569654,3294.5,3293.3,0.13954156]
[1768634795695,0.14318079,3294.8,3293.3,0.13954156]
[1768634795997,0.92568927,3294.7,3293.3,0.13954156]
[1768634796200,0.92568927,3294.6,3293.3,0.13954156]
[1768634796391,0.92568927,3294.5,3293.3,0.13954156]
[1768634796587,0.14318079,3294.8,3293.3,0.13954156]
[1768634796791,0.92568297,3294.7,3293.3,0.13954156]
[1768634796996,0.92568297,3294.6,3293.3,0.13954156]
[1768634797197,0.92568297,3294.5,3293.3,0.13954156]
[1768634797492,0.14318079,3294.8,3293.3,0.13954156]
[1768634797794,0.92567696,3294.7,3293.3,0.13954156]
[1768634797991,0.92567696,3294.6,3293.3,0.13954156]
[1768634798193,0.92567696,3294.5,3293.3,0.13954156]
[1768634798391,0.14318079,3294.8,3293.3,0.13954156]
[1768634798592,0.92567193,3294.7,3293.3,0.13954156]
[1768634798794,0.92567193,3294.6,3293.3,0.13954156]
[1768634799002,0.92567193,3294.5,3293.3,0.13954156]
[1768634799300,0.14318079,3294.8,3293.3,0.13954156]
[1768634799500,0.9256677,3294.7,3293.3,0.13954156]
[1768634799702,0.13621894,3294.5,3293.0,0.15188]
[1768634802904,0.13621894,3294.5,3292.8,3.96014842]
[1768634803101,0.98640325,3294.8,3292.8,3.96014842]
[1768634803102,0.13621894,3294.3,3292.8,3.96014842]
[1768634803301,0.13621894,3294.3,3292.8,0.14351069]
[1768634807406,0.13621894,3294.3,3292.4,3.96279758]
[1768634808403,0.13621894,3294.3,3292.5,0.14351069]
[1768634813114,0.92399659,3294.2,3292.5,0.14351069]
[1768634813306,0.13678981,3294.2,3292.5,0.14351069]
[1768634816413,0.13678981,3294.2,3292.6,0.13571037]
[1768634816614,1.696,3294.5,3292.6,0.13571037]
[1768634816814,0.92365748,3294.4,3292.6,0.13571037]
[1768634817013,0.92365748,3294.3,3292.6,0.13571037]
[1768634817313,0.92365748,3294.2,3292.6,0.13571037]
[1768634817507,0.13678981,3294.5,3292.6,0.13571037]
[1768634817707,0.92363726,3294.4,3292.6,0.13571037]
[1768634817907,0.92363726,3294.3,3292.6,0.13571037]
[1768634818108,0.13678981,3294.5,3292.6,0.13571037]
[1768634818308,0.13678981,3294.3,3292.6,0.13571037]
[1768634818516,0.9236496,3294.2,3292.6,0.13571037]
[1768634821219,1.06043941,3294.2,3292.6,0.13571037]
[1768634821420,0.13678981,3294.2,3292.6,0.13571037]
[1768634831427,0.92457755,3294.1,3292.6,0.13571037]
[1768634831626,0.13678981,3294.2,3292.6,0.13571037]
[1768634831829,0.92458717,3294.1,3292.6,0.13571037]
[1768634832029,0.13678981,3294.2,3292.6,0.13571037]
[1768634832326,0.92458636,3294.1,3292.6,0.13571037]
[1768634832525,0.13678981,3294.2,3292.6,0.13571037]
[1768634832728,0.92483384,3294.1,3292.6,0.13571037]
[1768634832918,0.13678981,3294.2,3292.6,0.13571037]
[1768634833121,0.92483384,3294.1,3292.6,0.13571037]
[1768634833320,0.13678981,3294.2,3292.6,0.13571037]
[1768634833525,0.92487014,3294.1,3292.6,0.13571037]
[1768634833727,0.13678981,3294.2,3292.6,0.13571037]
[1768634833931,0.92486315,3294.1,3292.6,0.13571037]
[1768634834121,0.13678981,3294.2,3292.6,0.13571037]
[1768634834324,0.92486393,3294.1,3292.6,0.13571037]
[1768634834533,0.13678981,3294.2,3292.6,0.13571037]
[1768634834726,0.92490501,3294.1,3292.6,0.13571037]
[1768634834919,0.13678981,3294.2,3292.6,0.13571037]
[1768634835123,0.92490611,3294.1,3292.6,0.13571037]
[1768634835323,0.13678981,3294.2,3292.6,0.13571037]
[1768634835623,0.92495534,3294.1,3292.6,0.13571037]
[1768634835821,0.13678981,3294.2,3292.6,0.13571037]
[1768634836123,0.92495534,3294.1,3292.6,0.13571037]
[1768634836437,0.13678981,3294.2,3292.6,0.13571037]
[1768634836629,0.92498917,3294.1,3292.6,0.13571037]
[1768634836822,0.13678981,3294.2,3292.6,0.13571037]
[1768634837022,0.92498907,3294.1,3292.6,0.13571037]
[1768634837233,0.13678981,3294.2,3292.6,0.13571037]
[1768634837431,0.92503402,3294.1,3292.6,0.13571037]
[1768634837731,0.13678981,3294.2,3292.6,0.13571037]
[1768634837931,0.92503402,3294.1,3292.6,0.13571037]
[1768634838231,0.13678981,3294.2,3292.6,0.13571037]
[1768634838426,0.13678981,3294.0,3292.4,3.81928689]
[1768634838632,0.92498111,3293.9,3292.4,3.81928689]
[1768634838831,0.13678981,3294.0,3292.4,0.00264916]